bitfinex/quotes_ETHUSD_20241013
["timestamp","ask_amount","ask_price","bid_price","bid_amount"]
[1728846487933,0.01222469,2454.8,2454.7,4.63196944]
[1728846488115,0.01222469,2454.8,2454.7,5.72945923]
[1728846489134,0.01222469,2454.8,2454.7,1.65564923]
[1728846489289,0.01222469,2454.8,2454.7,0.55815944]
[1728846489626,0.01222469,2454.8,2454.7,4.63196944]
[1728846493209,0.01222469,2454.8,2454.7,0.55815944]
[1728846493389,0.01222469,2454.8,2454.7,0.00815944]
[1728846493591,0.78222469,2454.8,2454.7,0.00815944]
[1728846512386,1.63751594,2454.8,2454.7,0.00815944]
[1728846513367,0.86751594,2454.8,2454.7,4.63196944]
[1728846513568,0.01222469,2454.8,2454.7,5.63715238]
[1728846515676,0.86751594,2454.8,2454.7,1.56334238]
[1728846515854,0.01222469,2454.8,2454.7,0.55815944]
[1728846517397,0.86751594,2454.8,2454.7,0.55815944]
[1728846517548,0.01222469,2454.8,2454.7,0.55815944]
[1728846518569,0.86816929,2454.8,2454.7,0.55815944]
[1728846519213,0.86816929,2454.8,2454.7,0.00815944]
[1728846520772,2.38140776,2454.8,2454.7,0.00815944]
[1728846521091,2.38156564,2454.8,2454.7,0.00815944]
[1728846521403,0.86832717,2454.8,2454.7,0.00815944]
[1728846522169,0.01222469,2454.8,2454.7,0.00815944]
[1728846522487,1.29614159,2454.8,2454.7,0.00815944]
[1728846522688,0.86847663,2454.8,2454.7,0.00815944]
[1728846523300,0.01222469,2454.8,2454.7,0.00815944]
[1728846524516,1.29614159,2454.8,2454.7,0.00815944]
[1728846527768,0.01222469,2454.8,2454.7,0.00815944]
[1728846528696,1.29736987,2454.8,2454.7,0.00815944]
[1728846537901,1.29736987,2454.8,2454.7,4.63196944]
[1728846538131,1.29736987,2454.8,2454.7,5.17319638]
[1728846538597,0.01222469,2454.8,2454.7,5.17319638]
[1728846539736,1.29776341,2454.8,2454.7,5.17319638]
[1728846541591,0.01222469,2454.8,2454.7,5.94859638]
[1728846542234,0.8692406,2454.8,2454.7,5.94859638]
[1728846542419,0.01222469,2454.8,2454.7,5.94859638]
[1728846543339,0.01222469,2454.8,2454.7,6.25402158]
[1728846543939,0.86921877,2454.8,2454.7,6.33549365]
[1728846544227,0.86921877,2454.8,2454.7,6.38159575]
[1728846544465,0.01222469,2454.8,2454.7,7.08856403]
[1728846545200,0.01222469,2454.8,2454.7,6.38159575]
[1728846545706,0.01222469,2454.8,2454.7,6.46305859]
[1728846546121,0.01222469,2454.8,2454.7,6.38159575]
[1728846546319,0.01222469,2454.8,2454.7,7.08853781]
[1728846547046,0.01222469,2454.8,2454.7,7.17000194]
[1728846547196,0.01222469,2454.8,2454.7,7.08853781]
[1728846547629,0.01222469,2454.8,2454.7,6.31313781]
[1728846547832,0.01222469,2454.8,2454.7,5.47862158]
[1728846548034,0.01222469,2454.8,2454.7,5.60619626]
[1728846549432,0.01222469,2454.8,2454.7,5.47862158]
[1728846550111,0.01222469,2454.8,2454.7,5.60619534]
[1728846550639,0.01222469,2454.8,2454.7,5.47862158]
[1728846550940,0.01222469,2454.8,2454.7,5.60619623]
[1728846551340,0.01222469,2454.8,2454.7,0.31358464]
[1728846551497,0.01222469,2454.8,2454.7,0.00815944]
[1728846551498,2.27826316,2454.8,2454.7,0.00815944]
[1728846552542,3.56337002,2454.8,2454.7,0.00815944]
[1728846552839,2.27826316,2454.8,2454.7,0.00815944]
[1728846553148,7.63697516,2454.8,2454.7,0.00815944]
[1728846553847,6.35191316,2454.8,2454.7,0.00815944]
[1728846554147,7.63694943,2454.8,2454.7,0.00815944]
[1728846556633,10.05011128,2454.8,2454.7,0.00815944]
[1728846559403,7.90847619,2454.8,2454.7,0.00815944]
[1728846561323,9.62083683,2454.8,2454.7,0.00815944]
[1728846562947,10.04930049,2454.8,2454.7,0.00815944]
[1728846564665,10.04832622,2454.8,2454.7,0.00815944]
[1728846568320,7.90847619,2454.8,2454.7,0.00815944]
[1728846568520,10.90847619,2454.8,2454.7,0.00815944]
[1728846568817,11.37835916,2454.8,2454.7,0.00815944]
[1728846571065,10.90847619,2454.8,2454.7,0.00815944]
[1728846576467,13.04572584,2454.8,2454.7,0.00815944]
[1728846580353,13.04512965,2454.8,2454.7,0.00815944]
[1728846584368,11.53189118,2454.8,2454.7,0.00815944]
[1728846584681,13.04512965,2454.8,2454.7,0.00815944]
[1728846585175,13.04486596,2454.8,2454.7,0.00815944]
[1728846585346,10.90847619,2454.8,2454.7,0.00815944]
[1728846586467,13.04485701,2454.8,2454.7,0.00815944]
[1728846591107,11.53161854,2454.8,2454.7,0.00815944]
[1728846591402,11.48829398,2454.8,2454.7,0.00815944]
[1728846593479,9.35191316,2454.8,2454.7,0.00815944]
[1728846600719,11.91961555,2454.8,2454.7,0.00815944]
[1728846602098,9.35191316,2454.8,2454.7,0.00815944]
[1728846602337,11.91961555,2454.8,2454.7,0.00815944]
[1728846602639,13.67025795,2454.8,2454.7,0.00815944]
[1728846605047,12.15701948,2454.8,2454.7,0.00815944]
[1728846605199,9.35191316,2454.8,2454.7,0.00815944]
[1728846605743,11.91961555,2454.8,2454.7,0.00815944]
[1728846607736,11.92213237,2454.8,2454.7,0.00815944]
[1728846611453,9.35191316,2454.8,2454.7,0.00815944]
[1728846615047,8.59911316,2454.8,2454.7,0.00815944]
[1728846615251,6.65742493,2454.8,2454.7,0.00815944]
[1728846615560,1.52546316,2454.8,2454.7,1.37075944]
[1728846615764,3.66819088,2454.8,2454.7,1.37075944]
[1728846615964,3.66819088,2454.8,2454.7,1.91524638]
[1728846616372,0.01222469,2454.8,2454.7,1.91524638]
[1728846616572,1.72577105,2454.8,2454.7,1.91524638]
[1728846616875,0.01222469,2454.8,2454.7,1.91524638]
[1728846617444,0.86855202,2454.8,2454.7,5.98905638]
[1728846617643,0.01222469,2454.8,2454.7,5.98905638]
[1728846618248,0.86828401,2454.8,2454.7,5.98905638]
[1728846618957,0.01222469,2454.8,2454.7,6.29388945]
[1728846619432,0.01222469,2454.8,2454.7,7.88859243]
[1728846619634,0.01222469,2454.8,2454.7,9.77931558]
[1728846619836,0.01222469,2454.8,2454.7,9.69785107]
[1728846620033,0.01222469,2454.8,2454.7,10.5531343]
[1728846620343,0.01222469,2454.8,2454.7,9.69785107]
[1728846621384,0.01222469,2454.8,2454.7,8.51241845]
[1728846621544,0.01222469,2454.8,2454.7,8.51123457]
[1728846621748,0.01222469,2454.8,2454.7,6.9979961]
[1728846622059,0.01222469,2454.8,2454.7,6.29314955]
[1728846622435,0.01222469,2454.8,2454.7,5.98905638]
[1728846624823,0.01222469,2454.8,2454.7,6.07052028]
[1728846626177,0.01222469,2454.8,2454.7,5.98905638]
[1728846626706,0.01222469,2454.8,2454.7,6.01496976]
[1728846627081,0.01222469,2454.8,2454.7,7.52820823]
[1728846628512,0.01222469,2454.8,2454.7,10.50229485]
[1728846628684,0.01222469,2454.8,2454.7,10.80582225]
[1728846629519,0.01222469,2454.8,2454.7,10.8058226]
[1728846629720,0.01222469,2454.8,2454.7,11.10928389]
[1728846629945,0.01222469,2454.8,2454.7,10.80575614]
[1728846630373,0.01222469,2454.8,2454.7,10.50229485]
[1728846646704,5.58542847,2455.7,2454.8,0.8133]
[1728846646931,5.99263647,2455.7,2455.6,0.00815944]
[1728846649309,4.86251,2456.0,2455.6,0.55815944]
[1728846649527,4.86251,2456.0,2455.6,4.63045944]
[1728846649528,0.7908,2456.0,2455.6,4.63045944]
[1728846649732,0.7908,2456.0,2455.9,0.00815944]
[1728846650125,0.8030212,2456.0,2455.9,0.00815944]
[1728846650438,3.44734618,2456.0,2455.9,0.00815944]
[1728846654869,7.51900618,2456.0,2455.9,0.00815944]
[1728846657251,8.37216191,2456.0,2455.9,0.00815944]
[1728846660554,8.37285586,2456.0,2455.9,0.00815944]
[1728846660732,7.51900618,2456.0,2455.9,0.00815944]
[1728846661287,8.79873978,2456.0,2455.9,0.00815944]
[1728846661782,9.69520061,2456.0,2455.9,0.00815944]
[1728846662083,7.98888915,2456.0,2455.9,0.00815944]
[1728846662283,10.122582,2456.0,2455.9,0.00815944]
[1728846662451,10.12574247,2456.0,2455.9,0.00815944]
[1728846663945,12.50212762,2456.0,2455.9,0.00815944]
[1728846664149,15.06635161,2456.0,2455.9,0.00815944]
[1728846664509,10.98888915,2456.0,2455.9,0.00815944]
[1728846665053,12.50212762,2456.0,2455.9,0.00815944]
[1728846665980,15.49372227,2456.0,2455.9,0.00815944]
[1728846667905,4.87907,2455.0,2454.7,0.55]
[1728846668103,1.51323847,2454.8,2454.6,0.55]
[1728846668270,1.51323847,2454.7,2454.6,0.55]
[1728846668595,1.52545967,2454.8,2454.6,0.55]
[1728846668956,0.0122212,2454.8,2454.6,4.62392]
[1728846669347,0.0122212,2454.8,2454.6,0.55]
[1728846670152,0.0122212,2454.8,2454.6,4.62396]
[1728846670991,0.0122212,2454.8,2454.7,0.00814349]
[1728846676420,1.52545967,2454.8,2454.7,0.00814349]
[1728846676821,1.52545967,2454.8,2454.7,0.55814349]
[1728846677342,1.52545967,2454.8,2454.7,0.00814349]
[1728846677637,1.52545967,2454.8,2454.7,4.63195349]
[1728846677638,0.0122212,2454.8,2454.7,4.63195349]
[1728846680317,0.0122212,2454.8,2454.7,0.55814349]
[1728846680720,0.0122212,2454.8,2454.7,4.63195349]
[1728846681375,0.0122212,2454.8,2454.7,0.55814349]
[1728846681535,0.0122212,2454.8,2454.7,4.63195349]
[1728846686675,0.0122212,2454.8,2454.7,6.33240584]
[1728846688479,0.0122212,2454.8,2454.7,5.38515349]
[1728846689953,0.0122212,2454.8,2454.7,4.63195349]
[1728846692106,1.52545967,2454.8,2454.7,0.55814349]
[1728846694375,0.0122212,2454.8,2454.7,0.55814349]
[1728846694782,1.52545967,2454.8,2454.7,0.55814349]
[1728846695986,1.52545967,2454.8,2454.7,0.00814349]
[1728846708278,2.38026874,2454.8,2454.7,0.00814349]
[1728846710312,0.86703027,2454.8,2454.7,0.00814349]
[1728846711101,1.70961814,2455.8,2455.4,4.62265]
[1728846711309,1.71208596,2455.8,2455.4,8.25731984]
[1728846711492,2.14010746,2456.1,2455.4,8.25731984]
[1728846711493,1.71208596,2456.0,2455.7,0.55]
[1728846711667,1.71208596,2456.1,2455.9,0.00814349]
[1728846711866,3.22532443,2456.1,2455.9,0.00814349]
[1728846712079,1.71208596,2456.2,2455.9,5.38495349]
[1728846712412,2.14010746,2456.3,2456.1,0.00814349]
[1728846712413,3.22532443,2456.3,2456.1,0.00814349]
[1728846712613,1.51323847,2456.2,2455.9,1.305]
[1728846712905,1.51323847,2456.2,2455.8,4.07196]
[1728846713110,1.51323847,2456.2,2455.8,4.07189]
[1728846713707,1.51323847,2456.1,2455.8,4.07189]
[1728846713864,1.51323847,2456.2,2455.8,8.14377]
[1728846714261,0.0122212,2455.9,2455.8,4.07188]
[1728846714476,0.0122212,2455.9,2455.8,4.08002349]
[1728846716616,0.0122212,2455.9,2455.8,7.78897931]
[1728846716769,0.0122212,2455.9,2455.8,8.49207154]
[1728846716967,0.0122212,2455.9,2455.8,9.67406473]
[1728846717169,0.0122212,2455.9,2455.8,11.28500572]
[1728846717367,0.0122212,2455.9,2455.8,10.43138222]
[1728846717908,0.0122212,2455.9,2455.8,12.41492121]
[1728846718412,0.0122212,2455.9,2455.8,11.35897794]
[1728846718912,0.0122212,2455.9,2455.8,6.27574084]
[1728846720683,0.0122212,2455.9,2455.8,9.7725183]
[1728846721069,0.0122212,2455.9,2455.8,6.27574084]
[1728846721284,0.0122212,2455.9,2455.8,4.08002349]
[1728846721736,0.0122212,2455.9,2455.8,0.00814349]
[1728846724093,0.0122212,2455.9,2455.8,8.9715523]
[1728846724329,0.0122212,2455.9,2455.8,8.89011095]
[1728846727038,0.0658329,2456.8,2456.7,1.3132]
[1728846727244,0.0658329,2456.8,2456.7,1.85971749]
[1728846727391,0.0658329,2456.8,2456.7,1.32134349]
[1728846728041,0.0658329,2456.8,2456.7,5.39184349]
[1728846729548,0.0778329,2456.8,2456.7,5.39184349]
[1728846731909,0.0778329,2456.8,2456.7,0.00814349]
[1728846737558,4.1481629,2456.8,2456.7,0.00814349]
[1728846737769,5.04742719,2456.8,2456.7,0.00814349]
[1728846744058,0.97709719,2456.8,2456.7,0.00814349]
[1728846744394,0.0778329,2456.8,2456.7,0.00814349]
[1728846748333,4.1481629,2456.8,2456.7,0.00814349]
[1728846748990,0.0778329,2456.8,2456.7,0.00814349]
[1728846750103,4.1481629,2456.8,2456.7,0.00814349]
[1728846750428,0.0778329,2456.8,2456.7,0.00814349]
[1728846750798,0.57006419,2456.8,2456.7,0.00814349]
[1728846751045,5.42099419,2456.8,2456.7,0.00814349]
[1728846752036,11.91777165,2456.8,2456.7,0.00814349]
[1728846752184,11.86777165,2456.8,2456.7,0.00814349]
[1728846753689,11.87977165,2456.8,2456.7,0.00814349]
[1728846754434,12.30052915,2456.8,2456.7,0.00814349]
[1728846754612,13.15146422,2456.8,2456.7,0.00814349]
[1728846754821,11.87977165,2456.8,2456.7,0.00814349]
[1728846766343,8.38299419,2456.8,2456.7,0.00814349]
[1728846773864,9.89060748,2456.8,2456.7,0.00814349]
[1728846776066,11.81897827,2456.8,2456.7,0.00814349]
[1728846776945,12.36897827,2456.8,2456.7,0.00814349]
[1728846777150,11.94822077,2456.8,2456.7,0.00814349]
[1728846777446,14.50563205,2456.8,2456.7,0.00814349]
[1728846777892,14.99110957,2456.8,2456.7,0.00814349]
[1728846780051,34.86110957,2456.8,2456.7,0.00814349]
[1728846780997,34.86139141,2456.8,2456.7,0.00814349]
[1728846783610,32.30369829,2456.8,2456.7,0.00814349]
[1728846784598,34.86220131,2456.8,2456.7,0.00814349]
[1728846785112,34.86221301,2456.8,2456.7,0.00814349]
[1728846785519,32.30369829,2456.8,2456.7,0.00814349]
[1728846785885,34.86238593,2456.8,2456.7,0.00814349]
[1728846786089,32.30369829,2456.8,2456.7,0.00814349]
[1728846791181,35.29014641,2456.8,2456.7,0.00814349]
[1728846794011,35.29293346,2456.8,2456.7,0.00814349]
[1728846794213,32.30369829,2456.8,2456.7,0.00814349]
[1728846796290,33.86888314,2456.8,2456.7,0.00814349]
[1728846796506,37.40105924,2456.8,2456.7,0.00814349]
[1728846796709,33.86888314,2456.8,2456.7,0.00814349]
[1728846797095,37.40105924,2456.8,2456.7,0.00814349]
[1728846797797,36.91628832,2456.8,2456.7,0.00814349]
[1728846798339,33.38411222,2456.8,2456.7,0.00814349]
[1728846798795,4.07149,2456.1,2456.0,0.7748]
[1728846798992,10.73064882,2456.1,2456.0,0.7748]
[1728846799196,8.59145659,2456.1,2456.0,0.7748]
[1728846801717,4.07256,2455.5,2455.3,0.798]
[1728846802028,0.012,2455.4,2455.3,0.798]
[1728846803511,4.08465,2455.4,2455.3,0.798]
[1728846805152,5.59261659,2455.4,2455.3,0.798]
[1728846805358,4.08465,2455.4,2455.3,0.798]
[1728846805720,5.59261659,2455.4,2455.3,0.798]
[1728846809718,0.012,2455.4,2455.3,0.798]
[1728846811251,4.08465,2455.4,2455.3,0.798]
[1728846811963,0.012,2455.4,2455.3,0.798]
[1728846812678,5.59261659,2455.4,2455.3,0.798]
[1728846823998,4.07299,2455.2,2454.9,0.7809]
[1728846824154,0.012,2455.0,2454.9,0.7809]
[1728846826364,0.012,2455.0,2454.9,1.266343]
[1728846826581,0.012,2455.0,2454.9,1.27448384]
[1728846840170,0.012,2455.0,2454.9,0.78904084]
[1728846840547,0.012,2455.0,2454.9,1.09425607]
[1728846841062,0.012,2455.0,2454.9,0.78904084]
[1728846847371,1.51996659,2455.0,2454.9,0.00814084]
[1728846847588,5.59327659,2455.0,2454.9,0.00814084]
[1728846847736,6.85956833,2455.0,2454.9,0.00814084]
[1728846849256,5.59327659,2455.0,2454.9,0.00814084]
[1728846849600,0.012,2455.0,2454.9,0.00814084]
[1728846849893,5.59327659,2455.0,2454.9,0.00814084]
[1728846850098,4.08531,2455.0,2454.9,0.00814084]
[1728846850284,5.59327659,2455.0,2454.9,0.00814084]
[1728846856000,7.65556833,2455.0,2454.9,0.00814084]
[1728846858413,5.59327659,2455.0,2454.9,0.00814084]
[1728846874657,0.012,2455.0,2454.9,0.00814084]
[1728846874811,0.012,2455.0,2454.9,0.81904084]
[1728846883218,1.29618033,2455.0,2454.9,0.81904084]
[1728846883421,0.012,2455.0,2454.9,0.81904084]
[1728846883961,1.29618033,2455.0,2454.9,0.81904084]
[1728846888780,5.36949033,2455.0,2454.9,0.81904084]
[1728846889071,1.29618033,2455.0,2454.9,0.00814084]
[1728846892275,0.012,2455.0,2454.9,0.00814084]
[1728846892651,1.72424044,2455.0,2454.9,0.00814084]
[1728846893336,0.012,2455.0,2454.9,0.00814084]
[1728846893533,1.72424044,2455.0,2454.9,0.00814084]
[1728846910724,0.012,2455.0,2454.9,9.64118367]
[1728846910929,0.012,2455.0,2454.9,15.64377027]
[1728846911154,0.012,2455.0,2454.9,14.56261543]
[1728846911354,0.012,2455.0,2454.9,14.1393637]
[1728846913633,0.012,2455.0,2454.9,11.43831117]
[1728846913972,0.012,2455.0,2454.9,9.93034458]
[1728846914125,0.012,2455.0,2454.9,4.56915763]
[1728846914439,0.012,2455.0,2454.9,2.24492224]
[1728846914642,0.012,2455.0,2454.9,1.53619196]
[1728846915059,0.012,2455.0,2454.9,1.12055423]
[1728846915242,0.012,2455.0,2454.9,0.00814084]
[1728846917183,0.012,2455.0,2454.9,4.08162084]
[1728846917369,0.012,2455.0,2454.9,5.37672192]
[1728846917574,0.012,2455.0,2454.9,7.82142824]
[1728846917777,0.012,2455.0,2454.9,8.52874072]
[1728846917948,0.012,2455.0,2454.9,9.63599269]
[1728846918285,0.012,2455.0,2454.9,10.12473124]
[1728846919152,0.012,2455.0,2454.9,9.63599269]
[1728846919781,0.012,2455.0,2454.9,9.63544357]
[1728846919981,0.012,2455.0,2454.9,9.32995161]
[1728846920291,0.012,2455.0,2454.9,9.63533149]
[1728846920458,0.012,2455.0,2454.9,9.63533125]
[1728846923151,0.012,2455.0,2454.9,9.50778002]
[1728846923347,0.012,2455.0,2454.9,9.63533199]
[1728846923876,0.012,2455.0,2454.9,9.32995163]
[1728846924429,0.012,2455.0,2454.9,9.63437392]
[1728846925516,0.012,2455.0,2454.9,11.14233853]
[1728846925712,0.012,2455.0,2454.9,14.14233853]
[1728846925896,0.012,2455.0,2454.9,15.48602605]
[1728846928930,0.012,2455.0,2454.9,13.7191533]
[1728846929089,0.012,2455.0,2454.9,15.48497463]
[1728846929721,5.57986659,2455.9,2455.4,4.07263]
[1728846929923,4.0719,2455.9,2455.8,0.00814084]
[1728846930933,2.10571814,2456.2,2455.8,5.58794743]
[1728846931229,4.89139,2456.4,2456.1,0.00814084]
[1728846931399,4.89139,2456.4,2455.9,2.91408835]
[1728846931400,4.07117,2456.3,2455.9,0.84732702]
[1728846931726,4.89139,2456.4,2455.9,0.84732702]
[1728846931899,4.89139,2456.4,2455.9,4.91912702]
[1728846932247,0.8203,2456.4,2456.1,4.07146]
[1728846932529,0.8203,2456.4,2456.0,8.1432]
[1728846932530,0.0008,2456.2,2456.0,8.1432]
[1728846932829,0.0008,2456.2,2456.1,0.00814084]
[1728846933502,0.0008,2456.2,2456.1,4.07963084]
[1728846933826,0.0008,2456.2,2456.1,5.67213758]
[1728846942344,6.35698659,2456.2,2456.1,0.00814084]
[1728846958938,0.0008,2456.2,2456.1,0.00814084]
[1728846960695,1.50876659,2456.2,2456.1,0.00814084]
[1728846960974,0.0008,2456.2,2456.1,0.00814084]
[1728846969713,5.58008659,2456.2,2456.1,0.00814084]
[1728846969910,0.0008,2456.2,2456.1,0.00814084]
[1728846971412,1.28099849,2456.2,2456.1,0.00814084]
[1728846972596,0.0008,2456.2,2456.1,0.00814084]
[1728846973519,1.28099849,2456.2,2456.1,0.00814084]
[1728846973680,0.0008,2456.2,2456.1,0.00814084]
[1728846973882,1.28099849,2456.2,2456.1,0.00814084]
[1728846974095,0.0008,2456.2,2456.1,0.00814084]
[1728846974531,1.28099849,2456.2,2456.1,0.00814084]
[1728846983776,0.0008,2456.2,2456.1,0.00814084]
[1728846984438,1.28329646,2456.2,2456.1,0.00814084]
[1728846985855,5.77905133,2456.2,2456.1,0.00814084]
[1728846988257,9.51039097,2456.2,2456.1,0.00814084]
[1728846988590,8.43301566,2456.2,2456.1,0.00814084]
[1728846988762,9.94098225,2456.2,2456.1,0.00814084]
[1728846990186,9.94147211,2456.2,2456.1,0.00814084]
[1728846994046,6.21013247,2456.2,2456.1,0.00814084]
[1728846994793,6.21023968,2456.2,2456.1,0.00814084]
[1728846994992,2.13891968,2456.2,2456.1,0.00814084]
[1728846995297,1.71137771,2456.2,2456.1,0.00814084]
[1728846995596,2.13891968,2456.2,2456.1,0.00814084]
[1728846995755,0.0008,2456.2,2456.1,0.00814084]
[1728846996468,0.0008,2456.2,2456.1,0.78544084]
[1728846996668,1.71129943,2456.2,2456.1,1.68647273]
[1728846997082,1.71129943,2456.2,2456.1,5.75796273]
[1728846997391,0.0008,2456.2,2456.1,6.37133029]
[1728846997768,0.0008,2456.2,2456.1,6.67707845]
[1728846997964,0.0008,2456.2,2456.1,7.87929688]
[1728846998284,0.0008,2456.2,2456.1,8.18499369]
[1728846998446,0.0008,2456.2,2456.1,8.95681193]
[1728846998653,0.0008,2456.2,2456.1,8.95678859]
[1728846998852,0.0008,2456.2,2456.1,8.5235945]
[1728846999088,0.0008,2456.2,2456.1,8.95677603]
[1728846999290,0.0008,2456.2,2456.1,8.8292806]
[1728846999910,0.0008,2456.2,2456.1,8.12161542]
[1728847000081,0.0008,2456.2,2456.1,8.91053756]
[1728847000287,0.0008,2456.2,2456.1,8.12161542]
[1728847002784,0.0008,2456.2,2456.1,7.81592932]
[1728847002985,0.0008,2456.2,2456.1,8.1213937]
[1728847003370,0.0008,2456.2,2456.1,8.20280596]
[1728847003518,0.0008,2456.2,2456.1,6.61342711]
[1728847003921,1.50876659,2456.2,2456.1,0.00814084]
[1728847004098,0.0008,2456.2,2456.1,0.00814084]
[1728847015707,0.0008,2456.2,2456.1,4.07963084]
[1728847016207,0.0008,2456.2,2456.1,4.12672553]
[1728847016404,0.0008,2456.2,2456.1,4.1610516]
[1728847016612,0.0008,2456.2,2456.1,5.06064276]
[1728847019444,0.0008,2456.2,2456.1,4.979222]
[1728847019748,0.0008,2456.2,2456.1,0.00814084]
[1728847025328,0.0008,2456.2,2456.1,4.82993084]
[1728847025825,0.0008,2456.2,2456.1,0.75844084]
[1728847026556,0.0008,2456.2,2456.1,0.83986221]
[1728847026755,0.0008,2456.2,2456.1,4.91135221]
[1728847026923,0.0008,2456.2,2456.1,5.80964443]
[1728847032833,0.0008,2456.2,2456.1,1.65673306]
[1728847033983,0.0008,2456.2,2456.1,5.8096419]
[1728847034537,0.0008,2456.2,2456.1,5.72822306]
[1728847035840,0.0008,2456.2,2456.1,4.97792306]
[1728847038697,0.0008,2456.2,2456.1,0.90643306]
[1728847039197,0.0008,2456.2,2456.1,4.97792306]
[1728847039392,0.0008,2456.2,2456.1,0.90643306]
[1728847039568,0.0008,2456.2,2456.1,0.00814084]
[1728847042085,0.0008,2456.2,2456.1,0.3138639]
[1728847044254,0.0008,2456.2,2456.1,0.00814084]
[1728847050716,1.28280817,2456.2,2456.1,0.00814084]
[1728847051611,0.0008,2456.2,2456.1,0.00814084]
[1728847052722,1.28280817,2456.2,2456.1,0.00814084]
[1728847054179,1.28280817,2456.2,2456.1,4.83943084]
[1728847055117,1.28280817,2456.2,2456.1,0.76794084]
[1728847059336,2.79077476,2456.2,2456.1,0.00814084]
[1728847059474,8.8286695,2456.2,2456.1,0.00814084]
[1728847060032,9.25794514,2456.2,2456.1,0.00814084]
[1728847060533,7.11932527,2456.2,2456.1,0.00814084]
[1728847060712,9.25794514,2456.2,2456.1,0.00814084]
[1728847061775,8.82920958,2456.2,2456.1,0.00814084]
[1728847061988,8.82926775,2456.2,2456.1,0.00814084]
[1728847062224,7.11932527,2456.2,2456.1,0.00814084]
[1728847062449,9.25794514,2456.2,2456.1,0.00814084]
[1728847062728,10.11932527,2456.2,2456.1,0.00814084]
[1728847067546,12.25341185,2456.2,2456.1,0.00814084]
[1728847068616,12.25296541,2456.2,2456.1,0.00814084]
[1728847073401,10.11932527,2456.2,2456.1,0.00814084]
[1728847081331,14.63927694,2456.2,2456.1,0.00814084]
[1728847081533,14.71007926,2456.2,2456.1,0.00814084]
[1728847083900,12.74697664,2456.2,2456.1,0.00814084]
[1728847084109,11.23901005,2456.2,2456.1,0.00814084]
[1728847084257,10.19012759,2456.2,2456.1,0.00814084]
[1728847084950,8.682161,2456.2,2456.1,0.00814084]
[1728847085157,10.19012759,2456.2,2456.1,0.00814084]
[1728847085479,12.31872998,2456.2,2456.1,0.00814084]
[1728847085650,12.31876389,2456.2,2456.1,0.00814084]
[1728847085856,12.31875678,2456.2,2456.1,0.00814084]
[1728847094413,10.01069019,2456.2,2456.1,0.00814084]
[1728847094713,10.35456511,2456.2,2456.1,0.00814084]
[1728847095611,10.35464321,2456.2,2456.1,0.00814084]
[1728847095897,10.78037672,2456.2,2456.1,0.00814084]
[1728847100498,8.65088891,2456.2,2456.1,0.00814084]
[1728847100797,10.7828941,2456.2,2456.1,0.00814084]
[1728847101042,10.62025052,2456.2,2456.1,0.00814084]
[1728847101415,12.90131711,2456.2,2456.1,0.00814084]
[1728847101612,15.91183851,2456.2,2456.1,0.00814084]
[1728847101767,13.35645314,2456.2,2456.1,0.00814084]
[1728847101967,16.33773607,2456.2,2456.1,0.00814084]
[1728847102207,13.35645314,2456.2,2456.1,0.00814084]
[1728847102403,16.33773607,2456.2,2456.1,0.00814084]
[1728847103012,13.35645314,2456.2,2456.1,0.00814084]
[1728847103215,16.34296356,2456.2,2456.1,0.00814084]
[1728847103507,5.58078659,2455.3,2455.2,0.7626]
[1728847103866,5.58158659,2455.3,2455.2,0.7626]
[1728847104825,6.86168496,2455.3,2455.2,0.7626]
[1728847108185,5.58158659,2455.3,2455.2,0.7626]
[1728847113071,4.07304,2455.2,2454.7,0.7998]
[1728847113249,4.07333,2455.0,2454.7,0.7998]
[1728847113759,5.58158659,2454.9,2454.7,0.7998]
[1728847114062,5.58129659,2455.0,2454.7,0.7998]
[1728847114221,9.65470659,2455.0,2454.7,0.7998]
[1728847114424,5.58129659,2455.0,2454.7,0.7998]
[1728847114616,4.07357,2454.9,2454.7,0.7998]
[1728847115243,5.58153659,2454.9,2454.7,0.7998]
[1728847115966,4.07357,2454.9,2454.7,0.7998]
[1728847117038,5.58153659,2454.9,2454.7,0.7998]
[1728847117764,4.07357,2454.9,2454.7,0.7998]
[1728847120988,5.58153659,2454.9,2454.7,0.7998]
[1728847123791,5.58161659,2454.8,2454.7,0.7998]
[1728847124786,4.07365,2454.8,2454.7,0.7998]
[1728847124984,5.58161659,2454.8,2454.7,0.7998]
[1728847131086,4.07365,2454.8,2454.7,0.7998]
[1728847131907,5.58161659,2454.8,2454.7,0.7998]
[1728847132540,5.58161659,2454.8,2454.3,0.7546]
[1728847132736,5.58195659,2454.6,2454.3,0.7546]
[1728847133546,1.50796659,2454.6,2454.3,0.7546]
[1728847133748,5.58180659,2454.7,2454.3,0.7546]
[1728847135015,1.50796659,2454.6,2454.3,0.7546]
[1728847136633,5.58180659,2454.7,2454.3,0.7546]
[1728847136845,1.50796659,2454.5,2454.3,0.7546]
[1728847137028,1.50796659,2454.6,2454.3,0.7546]
[1728847139765,4.07363,2454.9,2454.4,0.7577]
[1728847139972,4.07344,2455.0,2454.4,0.7577]
[1728847139973,4.07344,2455.0,2454.6,0.7577]
[1728847140127,4.07344,2455.0,2454.6,0.792322]
[1728847140463,5.58140659,2455.0,2454.6,0.792322]
[1728847140766,5.58140659,2455.0,2454.7,0.7577]
[1728847141641,1.50796659,2454.9,2454.7,0.7577]
[1728847142578,5.58151659,2454.9,2454.7,0.7577]
[1728847143447,5.58161659,2454.8,2454.7,0.7577]
[1728847146329,1.50796659,2454.8,2454.7,0.7577]
[1728847146529,5.58144659,2454.9,2454.7,0.7577]
[1728847147331,9.65506659,2454.9,2454.7,0.7577]
[1728847147631,5.58144659,2454.9,2454.7,0.7577]
[1728847147829,4.07348,2454.9,2454.7,0.7577]
[1728847148065,5.58144659,2454.9,2454.7,0.7577]
[1728847149648,1.28046126,2455.1,2454.8,0.7627]
[1728847149847,1.28046126,2455.3,2455.0,0.7627]
[1728847150179,1.70728169,2455.4,2455.1,0.7627]
[1728847150180,1.28046126,2455.4,2455.1,0.7627]
[1728847150537,1.28046126,2455.4,2455.1,1.27715317]
[1728847151071,6.86092785,2455.5,2455.1,1.27715317]
[1728847151366,2.78842785,2455.4,2455.1,1.27715317]
[1728847151568,2.78842785,2455.4,2455.1,0.7627]
[1728847152176,1.50796659,2455.4,2455.1,0.7627]
[1728847154079,5.58063659,2455.4,2455.1,0.7627]
[1728847155187,1.28046126,2455.5,2455.1,4.07302]
[1728847155472,2.78842785,2455.5,2455.2,0.84414673]
[1728847156064,1.50796659,2455.4,2455.2,0.7627]
[1728847156774,5.58052659,2455.5,2455.2,0.7627]
[1728847157577,1.50796659,2455.4,2455.2,0.7627]
[1728847160039,5.58052659,2455.5,2455.2,0.7627]